[Event "*** Titled Tuesday 3|2 Blitz"]
[Site "Chess.com"]
[Date "2016.05.03"]
[Round "3"]
[White "ChrisTool2"]
[Black "MbMaster"]
[Result "0-1"]
[WhiteElo "2212"]
[BlackElo "2219"]
[TimeControl "180+2"]
[EndTime "17:37:57 PDT"]
[Termination "MbMaster won by checkmate"]

1. d4 {[%clk 0:02:58.4]} 1... Nf6 {[%clk 0:02:58.6]} 2. c4 {[%clk 0:02:58.7]}
2... e6 {[%clk 0:02:59.7]} 3. Nf3 {[%clk 0:02:58.3]} 3... d5 {[%clk 0:03:00.8]}
4. Nc3 {[%clk 0:02:58.7]} 4... c5 {[%clk 0:03:01.3]} 5. cxd5 {[%clk 0:02:58]}
5... Nxd5 {[%clk 0:02:57.1]} 6. g3 {[%clk 0:02:58.2]} 6... Nc6 {[%clk
0:02:41.8]} 7. Bg2 {[%clk 0:02:56.3]} 7... Nb6 {[%clk 0:02:41.4]} 8. Be3 {[%clk
0:02:45.5]} 8... Nc4 {[%clk 0:02:40.9]} 9. O-O {[%clk 0:02:34.4]} 9... Nxe3
{[%clk 0:02:31.1]} 10. fxe3 {[%clk 0:02:35.1]} 10... Be7 {[%clk 0:02:32.5]} 11.
Qa4 {[%clk 0:02:29.6]} 11... O-O {[%clk 0:02:30.8]} 12. Rad1 {[%clk 0:02:30.5]}
12... Qb6 {[%clk 0:02:03.4]} 13. Qb5 {[%clk 0:02:22.6]} 13... Nb4 {[%clk
0:01:15.3]} 14. a3 {[%clk 0:02:19.9]} 14... Qxb5 {[%clk 0:00:57]} 15. Nxb5
{[%clk 0:02:20]} 15... Nd5 {[%clk 0:00:58.5]} 16. Kf2 {[%clk 0:02:19.1]} 16...
a6 {[%clk 0:00:58.3]} 17. Nc3 {[%clk 0:02:19.3]} 17... Nxc3 {[%clk 0:00:58]} 18.
bxc3 {[%clk 0:02:21.2]} 18... cxd4 {[%clk 0:00:58.3]} 19. exd4 {[%clk
0:02:20.5]} 19... Bxa3 {[%clk 0:00:59.3]} 20. Ne5 {[%clk 0:02:15.7]} 20... Be7
{[%clk 0:00:56.7]} 21. Rb1 {[%clk 0:02:08]} 21... Ra7 {[%clk 0:00:50.5]} 22. Rb3
{[%clk 0:02:01.9]} 22... b5 {[%clk 0:00:51.2]} 23. Nc6 {[%clk 0:02:01.8]} 23...
Rc7 {[%clk 0:00:51.9]} 24. Ra1 {[%clk 0:01:59.1]} 24... Bd6 {[%clk 0:00:47.8]}
25. e3 {[%clk 0:01:57.8]} 25... Bb7 {[%clk 0:00:42.9]} 26. Nb4 {[%clk
0:01:57.6]} 26... Bxg2 {[%clk 0:00:41.5]} 27. Kxg2 {[%clk 0:01:59.4]} 27... Bxb4
{[%clk 0:00:42.2]} 28. cxb4 {[%clk 0:01:59.7]} 28... Rc6 {[%clk 0:00:41.4]} 29.
Rba3 {[%clk 0:01:59.4]} 29... Ra8 {[%clk 0:00:42.1]} 30. Ra5 {[%clk 0:02:00]}
30... Rb6 {[%clk 0:00:39.4]} 31. Kf3 {[%clk 0:02:01]} 31... g6 {[%clk
0:00:39.2]} 32. Rc1 {[%clk 0:02:01.6]} 32... Ra7 {[%clk 0:00:36.8]} 33. Rc8+
{[%clk 0:02:01.7]} 33... Kg7 {[%clk 0:00:38]} 34. Ke4 {[%clk 0:02:02.6]} 34...
Rd7 {[%clk 0:00:38.6]} 35. Ra8 {[%clk 0:02:00.9]} 35... Rdd6 {[%clk 0:00:39.6]}
36. Kd3 {[%clk 0:01:59.8]} 36... Rbc6 {[%clk 0:00:40.4]} 37. e4 {[%clk
0:01:59.4]} 37... Rc4 {[%clk 0:00:40.2]} 38. R8xa6 {[%clk 0:01:59.1]} 38...
Rcxd4+ {[%clk 0:00:39.7]} 39. Ke3 {[%clk 0:01:59.5]} 39... Rd3+ {[%clk
0:00:34.2]} 40. Ke2 {[%clk 0:01:59.3]} 40... Rd2+ {[%clk 0:00:30.6]} 41. Ke3
{[%clk 0:01:59.8]} 41... R6d3+ {[%clk 0:00:30.3]} 42. Kf4 {[%clk 0:02:00.6]}
42... h5 {[%clk 0:00:27.4]} 43. Rxb5 {[%clk 0:01:55.5]} 43... f6 {[%clk
0:00:14.9]} 44. Rb7+ {[%clk 0:01:55.2]} 44... Kh6 {[%clk 0:00:15.9]} 45. e5
{[%clk 0:01:39.6]} 45... f5 {[%clk 0:00:15.6]} 46. Rxe6 {[%clk 0:00:52.1]} 46...
Rf2# {[%clk 0:00:15]} 0-1

[Event "*** Titled Tuesday 3|2 Blitz"]
[Site "Chess.com"]
[Date "2016.05.03"]
[Round "3"]
[White "NaziPaiki"]
[Black "Dr-Bassem"]
[Result "1-0"]
[WhiteElo "2684"]
[BlackElo "2569"]
[TimeControl "180+2"]
[EndTime "17:38:10 PDT"]
[Termination "NaziPaiki won by resignation"]

1. d4 {[%clk 0:03:01.9]} 1... e6 {[%clk 0:03:00]} 2. c4 {[%clk 0:03:02.7]} 2...
f5 {[%clk 0:03:01.1]} 3. g3 {[%clk 0:03:02.7]} 3... Nf6 {[%clk 0:03:02.6]} 4.
Bg2 {[%clk 0:03:04.2]} 4... Be7 {[%clk 0:03:04.3]} 5. Nf3 {[%clk 0:03:02.4]}
5... O-O {[%clk 0:03:05.9]} 6. O-O {[%clk 0:03:02.4]} 6... d6 {[%clk 0:03:07.5]}
7. b3 {[%clk 0:02:57.5]} 7... Qe8 {[%clk 0:03:08.7]} 8. Bb2 {[%clk 0:02:54.6]}
8... Qg6 {[%clk 0:03:00.3]} 9. Nc3 {[%clk 0:02:50.8]} 9... Ne4 {[%clk
0:03:01.1]} 10. Qc2 {[%clk 0:02:48.7]} 10... Bf6 {[%clk 0:02:57.1]} 11. Nxe4
{[%clk 0:02:44.9]} 11... fxe4 {[%clk 0:02:56.9]} 12. Nd2 {[%clk 0:02:46.1]}
12... d5 {[%clk 0:02:56.9]} 13. e3 {[%clk 0:02:46.2]} 13... Nc6 {[%clk
0:02:48.2]} 14. a3 {[%clk 0:02:45.9]} 14... Qh6 {[%clk 0:02:37.5]} 15. Rae1
{[%clk 0:02:43.9]} 15... Ne7 {[%clk 0:02:30.9]} 16. f4 {[%clk 0:02:39.7]} 16...
c6 {[%clk 0:02:25.7]} 17. a4 {[%clk 0:02:39.5]} 17... Qg6 {[%clk 0:02:21.1]} 18.
Ba3 {[%clk 0:02:40.8]} 18... h5 {[%clk 0:02:21.8]} 19. Bxe7 {[%clk 0:02:34.8]}
19... Bxe7 {[%clk 0:02:23.7]} 20. Nf3 {[%clk 0:02:35.6]} 20... Bd6 {[%clk
0:01:33.9]} 21. Ne5 {[%clk 0:02:32.1]} 21... Bxe5 {[%clk 0:01:34.7]} 22. fxe5
{[%clk 0:02:24.1]} 22... Bd7 {[%clk 0:01:35.8]} 23. Qd2 {[%clk 0:02:21.1]} 23...
Qg5 {[%clk 0:01:31.2]} 24. Rf4 {[%clk 0:02:19.2]} 24... Qe7 {[%clk 0:01:28.3]}
25. Ref1 {[%clk 0:02:18.6]} 25... Rxf4 {[%clk 0:01:22.9]} 26. Rxf4 {[%clk
0:02:19.5]} 26... Rf8 {[%clk 0:01:22.4]} 27. c5 {[%clk 0:02:15.7]} 27... b6
{[%clk 0:00:52.6]} 28. Rxf8+ {[%clk 0:02:13.1]} 28... Kxf8 {[%clk 0:00:39]} 29.
b4 {[%clk 0:02:14.7]} 29... bxc5 {[%clk 0:00:22.8]} 30. bxc5 {[%clk 0:02:15.3]}
30... Qd8 {[%clk 0:00:18.5]} 31. Qb4 {[%clk 0:02:15.7]} 31... Qc7 {[%clk
0:00:18.1]} 32. a5 {[%clk 0:02:15.3]} 32... Bc8 {[%clk 0:00:19]} 33. Bf1 {[%clk
0:02:13.7]} 33... Ke8 {[%clk 0:00:19.3]} 34. Be2 {[%clk 0:02:10.1]} 34... g6
{[%clk 0:00:20.5]} 35. Kg2 {[%clk 0:02:07.6]} 35... Qb7 {[%clk 0:00:21.5]} 36.
Qxb7 {[%clk 0:02:04.2]} 36... Bxb7 {[%clk 0:00:22.9]} 37. g4 {[%clk 0:02:05.6]}
37... hxg4 {[%clk 0:00:19.9]} 38. Bxg4 {[%clk 0:02:05.7]} 38... Kf7 {[%clk
0:00:21.3]} 39. Kg3 {[%clk 0:02:04.6]} 39... Ba6 {[%clk 0:00:17.6]} 40. Kf4
{[%clk 0:02:05.8]} 40... Bc4 {[%clk 0:00:17.6]} 41. Kg5 {[%clk 0:02:05.5]} 41...
Bd3 {[%clk 0:00:18.8]} 42. h4 {[%clk 0:02:02.3]} 42... Ba6 {[%clk 0:00:16.9]}
43. Bxe6+ {[%clk 0:01:18.8]} 43... Kxe6 {[%clk 0:00:15.3]} 44. Kxg6 {[%clk
0:01:20]} 44... Ke7 {[%clk 0:00:12.6]} 45. h5 {[%clk 0:01:21.2]} 45... Kf8
{[%clk 0:00:13.2]} 46. h6 {[%clk 0:01:19.3]} 46... Kg8 {[%clk 0:00:12.2]} 47.
h7+ {[%clk 0:01:15.4]} 47... Kh8 {[%clk 0:00:13.3]} 48. e6 {[%clk 0:01:16.5]}
48... Bc8 {[%clk 0:00:14.5]} 49. e7 {[%clk 0:01:16.5]} 49... Bd7 {[%clk
0:00:15.8]} 50. Kf7 {[%clk 0:01:14.2]} 50... Kxh7 {[%clk 0:00:16.6]} 51. e8=Q
{[%clk 0:01:15.2]} 51... Bxe8+ {[%clk 0:00:17.8]} 52. Kxe8 {[%clk 0:01:16.7]}
52... Kg6 {[%clk 0:00:19.2]} 53. Kd7 {[%clk 0:01:18.1]} 53... Kf5 {[%clk
0:00:20.7]} 54. Kxc6 {[%clk 0:01:19.5]} 54... Kg4 {[%clk 0:00:22.3]} 55. Kxd5
{[%clk 0:01:20.6]} 55... Kf3 {[%clk 0:00:24]} 56. c6 {[%clk 0:01:21.7]} 56...
Kxe3 {[%clk 0:00:24.9]} 57. c7 {[%clk 0:01:23.2]} 1-0

[Event "*** Titled Tuesday 3|2 Blitz"]
[Site "Chess.com"]
[Date "2016.05.03"]
[Round "3"]
[White "chessking2151"]
[Black "KNVB"]
[Result "1-0"]
[WhiteElo "2318"]
[BlackElo "2550"]
[TimeControl "180+2"]
[EndTime "17:38:15 PDT"]
[Termination "chessking2151 won on time"]

1. e4 {[%clk 0:03:01.9]} 1... b6 {[%clk 0:03:00.8]} 2. d4 {[%clk 0:02:57.2]}
2... Bb7 {[%clk 0:03:02.3]} 3. Bd3 {[%clk 0:02:51.8]} 3... e6 {[%clk 0:03:03.6]}
4. Nf3 {[%clk 0:02:52.4]} 4... d5 {[%clk 0:03:04.8]} 5. exd5 {[%clk 0:02:46.4]}
5... Qxd5 {[%clk 0:03:06.7]} 6. O-O {[%clk 0:02:44.6]} 6... Nf6 {[%clk
0:03:04.3]} 7. c4 {[%clk 0:02:44.6]} 7... Qh5 {[%clk 0:03:05]} 8. Ne5 {[%clk
0:02:43.5]} 8... Qxd1 {[%clk 0:03:06.9]} 9. Rxd1 {[%clk 0:02:44.3]} 9... Nbd7
{[%clk 0:03:07.7]} 10. Nc3 {[%clk 0:02:44.4]} 10... Nxe5 {[%clk 0:03:07.7]} 11.
dxe5 {[%clk 0:02:46.3]} 11... Nd7 {[%clk 0:03:09.4]} 12. f4 {[%clk 0:02:46.2]}
12... O-O-O {[%clk 0:03:10.4]} 13. Be3 {[%clk 0:02:46.6]} 13... Bc5 {[%clk
0:02:53.3]} 14. Bxc5 {[%clk 0:02:42.9]} 14... Nxc5 {[%clk 0:02:55.2]} 15. Bc2
{[%clk 0:02:44.5]} 15... a5 {[%clk 0:02:55.2]} 16. a3 {[%clk 0:02:44]} 16... h6
{[%clk 0:02:45.5]} 17. b4 {[%clk 0:02:42.9]} 17... axb4 {[%clk 0:02:47.4]} 18.
axb4 {[%clk 0:02:43.8]} 18... Na6 {[%clk 0:02:49.2]} 19. b5 {[%clk 0:02:33.7]}
19... Nc5 {[%clk 0:02:50.4]} 20. Kf2 {[%clk 0:02:32.9]} 20... g5 {[%clk
0:02:42.2]} 21. f5 {[%clk 0:02:31.9]} 21... exf5 {[%clk 0:02:35.4]} 22. Bxf5+
{[%clk 0:02:33.8]} 22... Kb8 {[%clk 0:02:37.1]} 23. Nd5 {[%clk 0:02:32.3]} 23...
Rhe8 {[%clk 0:02:25]} 24. Ne3 {[%clk 0:01:56.5]} 24... Rxd1 {[%clk 0:01:49.8]}
25. Rxd1 {[%clk 0:01:58.4]} 25... Rxe5 {[%clk 0:01:51.2]} 26. Rd8+ {[%clk
0:01:57]} 26... Ka7 {[%clk 0:01:52.6]} 27. Rf8 {[%clk 0:01:39.4]} 27... Re7
{[%clk 0:01:28.1]} 28. Rh8 {[%clk 0:01:34.8]} 28... Ne4+ {[%clk 0:01:24.1]} 29.
Bxe4 {[%clk 0:01:33]} 29... Bxe4 {[%clk 0:01:26]} 30. Rxh6 {[%clk 0:01:31.8]}
30... f5 {[%clk 0:01:27.6]} 31. g3 {[%clk 0:01:32.2]} 31... Rd7 {[%clk
0:01:19.6]} 32. Ke2 {[%clk 0:01:22.7]} 32... f4 {[%clk 0:01:20.4]} 33. gxf4
{[%clk 0:01:22.4]} 33... gxf4 {[%clk 0:01:22.3]} 34. Ng4 {[%clk 0:01:22.5]}
34... Bd3+ {[%clk 0:01:15]} 35. Kf3 {[%clk 0:01:23.6]} 35... Bxc4 {[%clk
0:01:16.3]} 36. Ne5 {[%clk 0:01:19.4]} 36... Bd5+ {[%clk 0:00:44.3]} 37. Kxf4
{[%clk 0:01:19.6]} 37... Rg7 {[%clk 0:00:43.6]} 38. h4 {[%clk 0:01:18.2]} 38...
Kb7 {[%clk 0:00:36.3]} 39. h5 {[%clk 0:01:18.5]} 39... Bb3 {[%clk 0:00:31.6]}
40. Rg6 {[%clk 0:01:18.4]} 40... Rh7 {[%clk 0:00:30.8]} 41. h6 {[%clk
0:01:18.7]} 41... Ba4 {[%clk 0:00:31.8]} 42. Kg5 {[%clk 0:01:15]} 42... Re7
{[%clk 0:00:27.3]} 43. Kf6 {[%clk 0:01:12.7]} 43... Rh7 {[%clk 0:00:22.8]} 44.
Nf7 {[%clk 0:01:06.4]} 44... Bxb5 {[%clk 0:00:12.3]} 45. Rg7 {[%clk 0:01:03.8]}
45... Bd3 {[%clk 0:00:13.5]} 46. Rxh7 {[%clk 0:00:56.4]} 46... Bxh7 {[%clk
0:00:15.4]} 47. Ng5 {[%clk 0:00:58]} 47... Bd3 {[%clk 0:00:16.5]} 48. Ke5 {[%clk
0:00:52.4]} 48... Kc6 {[%clk 0:00:06.7]} 49. Ne4 {[%clk 0:00:47]} 1-0

[Event "*** Titled Tuesday 3|2 Blitz"]
[Site "Chess.com"]
[Date "2016.05.03"]
[Round "3"]
[White "platy3"]
[Black "GM_Huschenbeth"]
[Result "0-1"]
[WhiteElo "2644"]
[BlackElo "2471"]
[TimeControl "180+2"]
[EndTime "17:38:24 PDT"]
[Termination "GM_Huschenbeth won by resignation"]

1. e4 {[%clk 0:03:01.9]} 1... e6 {[%clk 0:03:01.9]} 2. d4 {[%clk 0:03:01.4]}
2... d5 {[%clk 0:03:03.8]} 3. Nc3 {[%clk 0:02:56.2]} 3... Bb4 {[%clk 0:03:04.8]}
4. e5 {[%clk 0:02:57.3]} 4... c5 {[%clk 0:03:05]} 5. a3 {[%clk 0:02:58.7]} 5...
Bxc3+ {[%clk 0:03:06.5]} 6. bxc3 {[%clk 0:03:00.6]} 6... Ne7 {[%clk 0:03:07.7]}
7. Qg4 {[%clk 0:03:00.5]} 7... O-O {[%clk 0:03:09.3]} 8. Bd3 {[%clk 0:03:00.6]}
8... Nbc6 {[%clk 0:03:09.4]} 9. Nf3 {[%clk 0:03:01.7]} 9... f5 {[%clk 0:02:28]}
10. exf6 {[%clk 0:03:00.3]} 10... Rxf6 {[%clk 0:02:29.3]} 11. Bg5 {[%clk
0:02:56]} 11... Rf7 {[%clk 0:02:29.6]} 12. Ne5 {[%clk 0:02:29]} 12... Nxe5
{[%clk 0:02:27.8]} 13. dxe5 {[%clk 0:02:30.9]} 13... Qa5 {[%clk 0:02:10.7]} 14.
O-O {[%clk 0:02:30.3]} 14... Qxc3 {[%clk 0:02:11.4]} 15. Bxe7 {[%clk 0:02:30.1]}
15... Rxe7 {[%clk 0:02:13.3]} 16. Bxh7+ {[%clk 0:02:26.3]} 16... Kf8 {[%clk
0:02:06.2]} 17. Bg6 {[%clk 0:02:17]} 17... Qxe5 {[%clk 0:02:01.3]} 18. Qh4
{[%clk 0:02:17.8]} 18... Rd7 {[%clk 0:01:58.2]} 19. Rfe1 {[%clk 0:02:07.5]}
19... Qf6 {[%clk 0:01:54.4]} 20. Qg3 {[%clk 0:01:42.2]} 20... Re7 {[%clk
0:01:16.3]} 21. Re5 {[%clk 0:01:36.9]} 21... Bd7 {[%clk 0:01:11.6]} 22. Rae1
{[%clk 0:01:36.1]} 22... Be8 {[%clk 0:00:55.5]} 23. Bf5 {[%clk 0:01:25.4]} 23...
Bf7 {[%clk 0:00:51.3]} 24. c3 {[%clk 0:01:15.3]} 24... Rae8 {[%clk 0:00:48.6]}
25. Bc2 {[%clk 0:01:16.5]} 25... Kg8 {[%clk 0:00:42.5]} 26. R1e3 {[%clk
0:01:15.7]} 26... Rf8 {[%clk 0:00:38.2]} 27. Rg5 {[%clk 0:00:59.8]} 27... d4
{[%clk 0:00:22.3]} 28. cxd4 {[%clk 0:00:59.9]} 28... cxd4 {[%clk 0:00:24.2]} 29.
Rf3 {[%clk 0:00:27.5]} 29... Qh6 {[%clk 0:00:25.1]} 30. Rf4 {[%clk 0:00:25.5]}
30... Rc8 {[%clk 0:00:18.7]} 31. Bd1 {[%clk 0:00:17]} 31... Rc1 {[%clk
0:00:19.9]} 32. Rxd4 {[%clk 0:00:18.3]} 32... Bh5 {[%clk 0:00:11.9]} 33. Rd8+
{[%clk 0:00:07]} 33... Re8 {[%clk 0:00:13.3]} 34. Rxe8+ {[%clk 0:00:08]} 34...
Bxe8 {[%clk 0:00:15.2]} 35. h4 {[%clk 0:00:06.2]} 35... Rxd1+ {[%clk 0:00:16.4]}
36. Kh2 {[%clk 0:00:07.9]} 36... Rd4 {[%clk 0:00:16.3]} 37. f4 {[%clk
0:00:07.8]} 37... Bc6 {[%clk 0:00:15.3]} 38. Rg6 {[%clk 0:00:08.3]} 38... Qh7
{[%clk 0:00:14.3]} 39. Qg5 {[%clk 0:00:02.9]} 39... Rd2 {[%clk 0:00:14.1]} 40.
Kh3 {[%clk 0:00:03.4]} 40... Bxg2+ {[%clk 0:00:12.2]} 41. Kg3 {[%clk 0:00:04.7]}
41... Be4 {[%clk 0:00:12.9]} 42. f5 {[%clk 0:00:03.6]} 42... Rg2+ {[%clk
0:00:13.7]} 0-1

[Event "*** Titled Tuesday 3|2 Blitz"]
[Site "Chess.com"]
[Date "2016.05.03"]
[Round "3"]
[White "GMG"]
[Black "DanielNaroditsky"]
[Result "0-1"]
[WhiteElo "2436"]
[BlackElo "2649"]
[TimeControl "180+2"]
[EndTime "17:38:45 PDT"]
[Termination "DanielNaroditsky won by resignation"]

1. d4 {[%clk 0:03:01.9]} 1... Nf6 {[%clk 0:03:01.3]} 2. c4 {[%clk 0:03:01.7]}
2... e6 {[%clk 0:03:02.6]} 3. Nf3 {[%clk 0:03:01.8]} 3... d5 {[%clk 0:03:03]} 4.
Nc3 {[%clk 0:02:53.3]} 4... Bb4 {[%clk 0:03:04]} 5. cxd5 {[%clk 0:02:47.9]} 5...
exd5 {[%clk 0:03:05]} 6. Bf4 {[%clk 0:02:47.2]} 6... Ne4 {[%clk 0:02:58.3]} 7.
Rc1 {[%clk 0:02:36.4]} 7... Nc6 {[%clk 0:02:57]} 8. e3 {[%clk 0:02:35.8]} 8...
g5 {[%clk 0:02:55.3]} 9. Bg3 {[%clk 0:02:26.5]} 9... h5 {[%clk 0:02:56.1]} 10.
h4 {[%clk 0:01:49.5]} 10... Nxg3 {[%clk 0:02:47.3]} 11. fxg3 {[%clk 0:01:51.4]}
11... g4 {[%clk 0:02:49.1]} 12. Nd2 {[%clk 0:01:45]} 12... Bd6 {[%clk
0:02:27.9]} 13. Ne2 {[%clk 0:01:45.1]} 13... Qe7 {[%clk 0:02:22.5]} 14. Qb3
{[%clk 0:01:43.8]} 14... O-O {[%clk 0:02:21.9]} 15. Kf2 {[%clk 0:01:42]} 15...
Re8 {[%clk 0:02:20.4]} 16. Nf4 {[%clk 0:01:38.2]} 16... Bxf4 {[%clk 0:01:52]}
17. gxf4 {[%clk 0:01:40.1]} 17... a5 {[%clk 0:01:13.7]} 18. a3 {[%clk
0:01:35.3]} 18... a4 {[%clk 0:01:12.9]} 19. Qc3 {[%clk 0:01:36.4]} 19... g3+
{[%clk 0:01:08.3]} 20. Kxg3 {[%clk 0:01:34.4]} 20... Qxe3+ {[%clk 0:01:08.9]}
21. Qxe3 {[%clk 0:01:36]} 21... Rxe3+ {[%clk 0:01:09.8]} 22. Kf2 {[%clk
0:01:37.6]} 22... Re7 {[%clk 0:01:11.5]} 23. Nf3 {[%clk 0:01:31.3]} 23... Bg4
{[%clk 0:01:13.1]} 24. Be2 {[%clk 0:01:29.1]} 24... Bxf3 {[%clk 0:01:03.5]} 25.
Bxf3 {[%clk 0:01:29.8]} 25... Nxd4 {[%clk 0:01:04.5]} 26. Bxh5 {[%clk
0:01:30.5]} 26... Nb3 {[%clk 0:00:57]} 27. Rce1 {[%clk 0:01:28.8]} 27... Rae8
{[%clk 0:00:54.7]} 28. Rxe7 {[%clk 0:01:28]} 28... Rxe7 {[%clk 0:00:56.4]} 29.
Bf3 {[%clk 0:01:29.2]} 29... d4 {[%clk 0:00:48.1]} 30. g4 {[%clk 0:01:22.1]}
30... c5 {[%clk 0:00:44.9]} 31. g5 {[%clk 0:01:18.3]} 31... c4 {[%clk
0:00:42.8]} 32. h5 {[%clk 0:01:11.9]} 32... c3 {[%clk 0:00:43.3]} 33. bxc3
{[%clk 0:01:13.1]} 33... dxc3 {[%clk 0:00:45.1]} 34. Bd1 {[%clk 0:01:12.2]}
34... Rd7 {[%clk 0:00:40.4]} 35. Bg4 {[%clk 0:00:32.6]} 35... Rd4 {[%clk
0:00:38.5]} 36. Ke3 {[%clk 0:00:33.5]} 36... c2 {[%clk 0:00:39.3]} 37. h6 {[%clk
0:00:21.2]} 37... Rd6 {[%clk 0:00:40.3]} 38. Bf3 {[%clk 0:00:09.9]} 38... c1=Q+
{[%clk 0:00:32.9]} 39. Rxc1 {[%clk 0:00:11.4]} 39... Nxc1 {[%clk 0:00:33.6]} 40.
Bxb7 {[%clk 0:00:13]} 40... Rd3+ {[%clk 0:00:32.8]} 41. Ke4 {[%clk 0:00:13.6]}
41... Rxa3 {[%clk 0:00:34.6]} 42. f5 {[%clk 0:00:14.7]} 42... Rh3 {[%clk
0:00:34.5]} 43. Ke5 {[%clk 0:00:15.1]} 43... a3 {[%clk 0:00:34.9]} 44. Bd5
{[%clk 0:00:15.3]} 44... a2 {[%clk 0:00:32.7]} 45. Bxa2 {[%clk 0:00:12.1]} 45...
Nxa2 {[%clk 0:00:34.4]} 46. Kf6 {[%clk 0:00:13.5]} 46... Nb4 {[%clk 0:00:35]}
47. Ke5 {[%clk 0:00:12.7]} 47... Nd3+ {[%clk 0:00:35.1]} 48. Kf6 {[%clk
0:00:13.7]} 48... Nf4 {[%clk 0:00:36.6]} 49. Ke5 {[%clk 0:00:13.1]} 49... Rh4
{[%clk 0:00:37.9]} 50. Kf6 {[%clk 0:00:14]} 50... Nh3 {[%clk 0:00:37.9]} 51. h7+
{[%clk 0:00:05.2]} 51... Rxh7 {[%clk 0:00:38.4]} 52. g6 {[%clk 0:00:03.9]} 52...
fxg6 {[%clk 0:00:39.4]} 53. fxg6 {[%clk 0:00:05.8]} 53... Rg7 {[%clk 0:00:40.9]}
54. Kf5 {[%clk 0:00:06.4]} 54... Nf4 {[%clk 0:00:42.4]} 0-1

[Event "*** Titled Tuesday 3|2 Blitz"]
[Site "Chess.com"]
[Date "2016.05.03"]
[Round "3"]
[White "RamonManon0g"]
[Black "tactics321"]
[Result "0-1"]
[WhiteElo "2255"]
[BlackElo "2155"]
[TimeControl "180+2"]
[EndTime "17:38:57 PDT"]
[Termination "tactics321 won by resignation"]

1. d4 {[%clk 0:03:01.9]} 1... Nf6 {[%clk 0:02:59.7]} 2. Bg5 {[%clk 0:03:03.1]}
2... d5 {[%clk 0:02:59.9]} 3. Bxf6 {[%clk 0:03:03.9]} 3... exf6 {[%clk
0:03:01.8]} 4. e3 {[%clk 0:03:05.7]} 4... Bd6 {[%clk 0:03:02]} 5. g3 {[%clk
0:03:07.6]} 5... O-O {[%clk 0:03:03.1]} 6. Bg2 {[%clk 0:03:09.3]} 6... c6 {[%clk
0:03:04.5]} 7. Ne2 {[%clk 0:03:10.5]} 7... Nd7 {[%clk 0:03:05.8]} 8. O-O {[%clk
0:03:12.2]} 8... f5 {[%clk 0:03:07.1]} 9. Nd2 {[%clk 0:03:14]} 9... Nf6 {[%clk
0:03:08.3]} 10. b3 {[%clk 0:03:15.9]} 10... Re8 {[%clk 0:03:07.4]} 11. c4 {[%clk
0:03:17.8]} 11... Bc7 {[%clk 0:03:04.5]} 12. c5 {[%clk 0:03:17.1]} 12... Ne4
{[%clk 0:03:04.4]} 13. b4 {[%clk 0:03:18.3]} 13... g6 {[%clk 0:02:37.1]} 14. a4
{[%clk 0:03:07.6]} 14... Bd7 {[%clk 0:02:37.2]} 15. Rb1 {[%clk 0:03:05.5]} 15...
a6 {[%clk 0:02:35.6]} 16. Nf4 {[%clk 0:03:03.5]} 16... Bxf4 {[%clk 0:02:33.6]}
17. gxf4 {[%clk 0:03:03.9]} 17... Kh8 {[%clk 0:02:32.9]} 18. Nxe4 {[%clk
0:03:01.8]} 18... dxe4 {[%clk 0:02:30.4]} 19. Qb3 {[%clk 0:02:51.4]} 19... Be6
{[%clk 0:02:31]} 20. Qb2 {[%clk 0:02:49.1]} 20... Bd5 {[%clk 0:02:31.4]} 21. b5
{[%clk 0:02:49.6]} 21... axb5 {[%clk 0:02:31.5]} 22. axb5 {[%clk 0:02:51.5]}
22... g5 {[%clk 0:02:30.2]} 23. fxg5 {[%clk 0:02:52.1]} 23... Qxg5 {[%clk
0:02:32.1]} 24. Kh1 {[%clk 0:02:53.7]} 24... Rg8 {[%clk 0:02:30.7]} 25. Rg1
{[%clk 0:02:55.1]} 25... Qh4 {[%clk 0:02:30.8]} 26. bxc6 {[%clk 0:02:47.5]}
26... bxc6 {[%clk 0:02:30.9]} 27. Qe2 {[%clk 0:02:43]} 27... Rg6 {[%clk
0:02:12.7]} 28. Bf1 {[%clk 0:02:18.2]} 28... Rxg1+ {[%clk 0:02:08.2]} 29. Kxg1
{[%clk 0:02:18.9]} 29... Rg8+ {[%clk 0:02:07.8]} 30. Kh1 {[%clk 0:02:19.2]}
30... f4 {[%clk 0:01:59.6]} 31. exf4 {[%clk 0:02:10]} 31... Qxf4 {[%clk
0:01:30.7]} 32. Bg2 {[%clk 0:02:08.7]} 32... Qg5 {[%clk 0:00:52.3]} 33. f3
{[%clk 0:01:27]} 33... e3 {[%clk 0:00:38.7]} 34. Re1 {[%clk 0:01:27.1]} 34... f5
{[%clk 0:00:32.2]} 35. Rg1 {[%clk 0:01:09.9]} 35... f4 {[%clk 0:00:32.2]} 36.
Qf1 {[%clk 0:01:09.4]} 36... Qh5 {[%clk 0:00:32.1]} 37. Qe2 {[%clk 0:01:06.4]}
37... Ra8 {[%clk 0:00:24.4]} 38. Rf1 {[%clk 0:01:05.2]} 38... Ra2 {[%clk
0:00:24.4]} 39. Qe1 {[%clk 0:01:03.5]} 39... Rxg2 {[%clk 0:00:20.6]} 40. Kxg2
{[%clk 0:01:04.1]} 40... Qg4+ {[%clk 0:00:22.1]} 41. Kh1 {[%clk 0:01:00.9]}
41... Bxf3+ {[%clk 0:00:23]} 42. Rxf3 {[%clk 0:01:01]} 42... Qxf3+ {[%clk
0:00:24.9]} 43. Kg1 {[%clk 0:01:02.9]} 43... Qg4+ {[%clk 0:00:22.9]} 44. Kf1
{[%clk 0:00:59.3]} 44... f3 {[%clk 0:00:23.5]} 45. Qg3 {[%clk 0:00:59]} 45...
Qxd4 {[%clk 0:00:19.3]} 46. Qxf3 {[%clk 0:00:54.4]} 46... Qxc5 {[%clk
0:00:20.4]} 47. Qf6+ {[%clk 0:00:54.4]} 47... Kg8 {[%clk 0:00:21.3]} 48. Qd8+
{[%clk 0:00:54.8]} 48... Kg7 {[%clk 0:00:22.5]} 49. Qd7+ {[%clk 0:00:55.5]}
49... Kh6 {[%clk 0:00:22.3]} 50. Qh3+ {[%clk 0:00:56.1]} 50... Kg6 {[%clk
0:00:22.9]} 51. Qg4+ {[%clk 0:00:57.4]} 51... Kf6 {[%clk 0:00:23.9]} 52. Qh4+
{[%clk 0:00:58.5]} 52... Qg5 {[%clk 0:00:21.4]} 53. Qd4+ {[%clk 0:00:57.5]}
53... Qe5 {[%clk 0:00:22.5]} 54. Qd8+ {[%clk 0:00:58.6]} 54... Kg6 {[%clk
0:00:22.8]} 55. Qg8+ {[%clk 0:00:59.3]} 55... Kh6 {[%clk 0:00:24]} 56. Qf8+
{[%clk 0:00:59.5]} 56... Kh5 {[%clk 0:00:24.8]} 57. Qf7+ {[%clk 0:00:58.9]}
57... Kg5 {[%clk 0:00:24.9]} 58. Qg8+ {[%clk 0:00:57.4]} 58... Kf4 {[%clk
0:00:25.7]} 59. Qc4+ {[%clk 0:00:55.8]} 59... Qe4 {[%clk 0:00:26.7]} 60. Qf7+
{[%clk 0:00:56.3]} 60... Ke5 {[%clk 0:00:27.9]} 61. Qe7+ {[%clk 0:00:56.3]}
61... Kd4 {[%clk 0:00:29.1]} 62. Qb4+ {[%clk 0:00:57.2]} 62... Kd3 {[%clk
0:00:30]} 63. Qb3+ {[%clk 0:00:58.6]} 63... Kd2 {[%clk 0:00:30.7]} 64. Qb2+
{[%clk 0:01:00]} 64... Qc2 {[%clk 0:00:31.7]} 65. Qd4+ {[%clk 0:01:00.2]} 65...
Qd3+ {[%clk 0:00:32.6]} 66. Qxd3+ {[%clk 0:01:00.9]} 66... Kxd3 {[%clk
0:00:33.9]} 67. Ke1 {[%clk 0:01:02.2]} 67... e2 {[%clk 0:00:35]} 68. h4 {[%clk
0:01:03.1]} 68... c5 {[%clk 0:00:36.4]} 0-1